bitfinex-derivatives/quotes_SOLF0:USTF0_20241127
["timestamp","ask_amount","ask_price","bid_price","bid_amount"]
[1732673168749,2.18,232.06,232.02,6.86400963]
[1732673169449,2.18,232.06,232.02,9.01960963]
[1732673170155,2.18,232.06,232.02,6.86400963]
[1732673172457,2.18,232.06,232.04,6.86400963]
[1732673172652,1.8344,232.1,232.04,6.86400963]
[1732673172954,3.802,232.2,232.08,6.86400963]
[1732673173153,11.56431811,232.19,232.13,6.86400963]
[1732673173351,5.7887,232.2,232.13,6.86400963]
[1732673173655,2.18,232.19,232.13,6.86400963]
[1732673174050,2.18,232.19,232.13,9.01860963]
[1732673174847,2.18,232.19,232.13,6.86400963]
[1732673175154,2.18,232.19,232.14,2.1546]
[1732673175155,4.3341,232.19,232.14,2.1546]
[1732673175557,2.18,232.18,232.13,9.01870963]
[1732673175752,2.18,232.18,232.13,6.86400963]
[1732673176652,2.18,232.18,232.17,6.86400963]
[1732673176848,35.79646568,232.31,232.17,6.86400963]
[1732673176849,1.8919,232.26,232.17,6.86400963]
[1732673177049,2.18,232.25,232.22,6.86400963]
[1732673177252,2.18,232.25,232.19,2.154]
[1732673177253,2.18,232.25,232.2,6.86400963]
[1732673177950,6.86400963,232.24,232.16,9.01830963]
[1732673178152,6.86400963,232.22,232.14,6.86400963]
[1732673178354,2.1542,232.18,232.08,10.69875006]
[1732673178554,2.18,232.17,232.08,10.69875006]
[1732673179248,2.18,232.17,232.12,2.1548]
[1732673179854,2.18,232.17,232.08,10.69875006]
[1732673180048,2.1545,232.15,232.08,12.85385006]
[1732673180754,2.1546,232.14,232.08,12.85385006]
[1732673180957,2.18,232.17,232.08,12.85385006]
[1732673181153,2.18,232.17,232.05,10.69875006]
[1732673181358,2.002,232.16,232.02,10.69875006]
[1732673181858,2.155,232.1,232.04,2.1555]
[1732673182154,2.18,232.09,231.99,10.69875006]
[1732673182361,2.18,232.08,231.99,10.69875006]
[1732673183257,2.18,232.08,232.02,2.1557]
[1732673183659,2.18,232.08,231.99,10.69875006]
[1732673183861,2.1552,232.07,232.01,2.1557]
[1732673186661,2.1555,232.04,231.78,480.0]
[1732673186961,2.18,232.03,231.94,10.69875006]
[1732673187262,2.1561,231.98,231.91,12.85545006]
[1732673187462,2.18,231.97,231.91,10.69875006]
[1732673187658,2.18,231.96,231.91,10.69875006]
[1732673187963,2.18,231.96,231.88,12.80739827]
[1732673188158,2.18,231.96,231.88,10.69875006]
[1732673189252,2.1563,231.95,231.88,12.85565006]
[1732673193067,2.18,231.96,231.88,10.69875006]
[1732673193567,2.18,231.96,231.92,2.1566]
[1732673193770,2.18,231.96,231.88,10.69875006]
[1732673194368,2.18,231.95,231.88,10.69875006]
[1732673194566,2.18,231.94,231.92,2.1565]
[1732673194768,2.18,231.93,231.92,2.1565]
[1732673194973,2.18,231.94,231.91,10.69875006]
[1732673195470,2.18,231.94,231.91,12.85535006]
[1732673196464,2.18,231.94,231.92,2.1566]
[1732673196763,1.8275,232.02,231.91,10.69875006]
[1732673196973,2.18,231.98,231.95,12.85505006]
[1732673197265,21.79972337,232.08,231.95,10.69875006]
[1732673197467,2.18,232.07,231.98,10.69875006]
[1732673198164,2.1553,232.06,231.98,10.69875006]
[1732673198363,2.1553,232.06,231.98,12.85475006]
[1732673198873,2.18,232.07,231.95,10.69875006]
[1732673200165,2.1555,232.05,231.95,10.69875006]
[1732673200366,2.18,232.07,231.95,10.69875006]
[1732673200771,2.1555,232.04,231.98,2.1561]
[1732673202063,2.18,232.07,231.95,10.69875006]
[1732673202269,2.1559,232.0,231.94,2.1564]
[1732673202467,2.18,231.99,231.94,2.1564]
[1732673203271,2.18,231.99,231.89,10.69875006]
[1732673203272,2.1562,231.97,231.89,10.69875006]
[1732673203671,2.18,231.99,231.89,10.69875006]
[1732673204170,2.1561,231.98,231.92,2.1566]
[1732673204372,2.18,231.99,231.92,10.69875006]
[1732673204572,2.18,231.99,231.94,2.1564]
[1732673204873,2.18,231.99,231.92,10.69875006]
[1732673205071,2.18,231.99,231.95,10.69875006]
[1732673205475,2.18,231.99,231.96,2.1562]
[1732673206874,2.18,231.99,231.95,10.69875006]
[1732673207477,2.1557,232.02,231.95,10.69875006]
[1732673207777,2.18,232.01,231.95,10.69875006]
[1732673207977,2.18,232.01,231.95,12.85505006]
[1732673208379,2.1559,232.0,231.94,2.1564]
[1732673208679,2.18,232.01,231.92,10.69875006]
[1732673209077,2.18,232.01,231.96,2.1562]
[1732673209279,2.18,232.01,231.95,10.69875006]
[1732673209678,4.3358,232.01,231.95,10.69875006]
[1732673209977,2.18,232.01,231.95,10.69875006]
[1732673210185,2.18,232.01,231.91,2.1566]
[1732673210587,2.18,232.01,231.89,10.69875006]
[1732673210782,2.1561,231.98,231.91,2.1567]
[1732673211089,2.18,232.01,231.91,2.1567]
[1732673212690,2.1564,231.95,231.89,12.85555006]
[1732673212894,2.18,231.94,231.89,12.85555006]
[1732673213080,2.1566,231.92,231.86,10.69875006]
[1732673213485,2.18,231.94,231.86,10.69875006]
[1732673214290,2.1565,231.93,231.88,2.157]
[1732673215180,2.1565,231.93,231.86,10.69875006]
[1732673215380,2.1565,231.93,231.89,2.1569]
[1732673216787,2.18,231.94,231.86,12.85585006]
[1732673216788,2.1568,231.91,231.86,12.85585006]
[1732673216981,2.1568,231.91,231.86,10.69875006]
[1732673217181,2.1567,231.92,231.86,12.85595006]
[1732673217483,2.18,231.94,231.83,10.69875006]
[1732673218093,2.1569,231.9,231.85,2.1572]
[1732673218292,2.18,231.89,231.85,2.1572]
[1732673218492,2.1572,231.86,231.8,2.1576]
[1732673218792,2.1572,231.86,231.79,10.93204006]
[1732673218992,2.18,231.89,231.79,10.93204006]
[1732673219194,2.1571,231.88,231.79,10.93204006]
[1732673219693,2.1571,231.88,231.83,2.1574]
[1732673219990,2.1571,231.88,231.79,10.93204006]
[1732673220583,2.1571,231.87,231.82,2.1575]
[1732673220994,2.18,231.89,231.79,10.93204006]
[1732673221787,2.1573,231.85,231.8,2.1577]
[1732673221993,2.18,231.84,231.8,2.1577]
[1732673222491,2.18,231.84,231.79,10.93204006]
[1732673222696,2.18,231.84,231.83,2.1575]
[1732673223493,2.18,231.84,231.81,2.1576]
[1732673223693,2.18,231.84,231.79,0.23329]
[1732673223894,2.18,231.84,231.79,10.93204006]
[1732673224590,2.1577,231.8,231.79,0.23329]
[1732673225296,3.8894,231.83,231.7,10.69875006]
[1732673225501,10.69875006,231.81,231.66,10.69875006]
[1732673225894,10.69875006,231.81,231.62,3.7793]
[1732673225895,2.1587,231.7,231.63,10.69875006]
[1732673226101,2.18,231.69,231.6,10.69875006]
[1732673226294,2.18,231.68,231.57,10.69875006]
[1732673226495,2.18,231.67,231.57,10.69875006]
[1732673226697,2.18,231.66,231.57,10.69875006]
[1732673226997,2.18,231.65,231.57,10.69875006]
[1732673227194,2.18,231.64,231.6,10.69875006]
[1732673227387,2.18,231.65,231.63,10.69875006]
[1732673227593,2.18,231.66,231.63,10.69875006]
[1732673227796,2.18,231.67,231.63,10.69875006]
[1732673228896,2.1583,231.75,231.68,2.1588]
[1732673229200,2.18,231.74,231.66,10.69875006]
[1732673229407,2.18,231.73,231.66,10.69875006]
[1732673229703,2.18,231.73,231.68,2.1588]
[1732673230203,2.18,231.73,231.69,2.1588]
[1732673230799,2.18,231.72,231.69,2.1588]
[1732673231498,10.69875006,231.87,231.69,10.69875006]
[1732673231802,10.69875006,231.87,231.64,2.18781869]
[1732673231803,2.18,231.82,231.76,10.69875006]
[1732673232001,2.18,231.81,231.79,10.69875006]
[1732673232199,2.18,231.82,231.79,10.69875006]
[1732673232602,2.1578,231.8,231.73,10.69875006]
[1732673232802,2.18,231.82,231.66,3.7062]
[1732673233101,2.18,231.82,231.69,10.69875006]
[1732673233404,1.907,231.81,231.69,10.69875006]
[1732673234403,2.1578,231.8,231.74,2.1583]
[1732673235000,33.66,231.91,231.72,10.69875006]
[1732673235303,16.79675006,231.89,231.75,10.69875006]
[1732673235905,10.69875006,231.86,231.72,10.69875006]
[1732673236307,2.1575,231.83,231.69,2.1587]
[1732673236506,2.18,231.82,231.66,20.88503277]
[1732673236908,2.1579,231.78,231.71,2.1586]
[1732673237208,2.18,231.77,231.7,17.17883277]
[1732673238109,2.18,231.77,231.72,2.1585]
[1732673238310,2.18,231.77,231.7,17.17883277]
[1732673239206,2.18,231.77,231.74,2.1583]
[1732673239608,2.18,231.77,231.7,17.17883277]
[1732673239806,2.18,231.79,231.78,2.1579]
[1732673240109,2.18,231.81,231.74,17.17883277]
[1732673240316,2.18,231.82,231.78,17.17883277]
[1732673241004,2.18,231.82,231.74,17.17883277]
[1732673241606,2.18,231.82,231.77,2.158]
[1732673241811,2.18,231.82,231.74,17.17883277]
[1732673242411,2.18,231.82,231.76,2.1581]
[1732673242613,2.18,231.82,231.74,17.17883277]
[1732673243210,2.18,231.82,231.77,2.158]
[1732673243615,0.8,231.81,231.77,2.158]
[1732673243811,0.8,231.81,231.73,2.1583]
[1732673244115,0.8,231.81,231.66,20.88503277]
[1732673244414,2.7495,231.81,231.66,20.88503277]
[1732673244605,2.1582,231.76,231.7,2.1587]
[1732673244807,2.18,231.75,231.7,2.1587]
[1732673245312,2.18,231.75,231.66,3.7062]
[1732673246015,2.18,231.75,231.69,2.1588]
[1732673246317,2.18,231.75,231.66,3.7062]
[1732673246913,2.18,231.75,231.66,1.8718]
[1732673247215,2.18,231.75,231.57,22.88273277]
[1732673247419,2.1588,231.69,231.6,2.1596]
[1732673247614,2.18,231.68,231.6,2.1596]
[1732673247910,2.18,231.67,231.57,19.13923277]
[1732673248117,2.1591,231.66,231.59,2.1597]
[1732673248315,2.18,231.67,231.57,19.13923277]
[1732673248612,2.18,231.67,231.53,17.17883277]
[1732673249209,2.1594,231.63,231.56,2.44941]
[1732673249412,2.18,231.62,231.56,2.44941]
[1732673249817,2.18,231.62,231.57,2.1598]
[1732673250219,2.18,231.62,231.56,0.28941]
[1732673250518,2.18,231.62,231.55,2.16]
[1732673250719,2.18,231.62,231.53,17.17883277]
[1732673251218,2.18,231.62,231.55,2.16]
[1732673251408,2.18,231.62,231.53,17.17883277]
[1732673251615,1.46,231.61,231.53,17.17883277]
[1732673253416,1.46,231.61,231.49,23.28330277]
[1732673254113,3.6196,231.61,231.52,2.1603]
[1732673254318,1.46,231.61,231.49,0.40037]
[1732673254514,3.8633,231.6,231.49,0.40037]
[1732673255522,21.04213277,231.6,231.49,0.40037]
[1732673256115,2.1605,231.51,231.49,0.40037]
[1732673256318,2.18,231.5,231.49,0.40037]
[1732673258113,2.18,231.5,231.24,26.15805273]
[1732673258312,3.7927,231.49,231.31,17.17883277]
[1732673258714,17.17883277,231.47,231.32,2.1621]
[1732673258916,1.66,231.46,231.32,2.1621]
[1732673259124,2.18,231.45,231.27,17.17883277]
[1732673259420,17.17883277,231.43,231.24,5.8792717]
[1732673259612,2.18,231.45,231.24,5.8792717]
[1732673259613,17.17883277,231.39,231.24,5.8792717]
[1732673259819,17.17883277,231.35,231.24,5.8792717]
[1732673260023,5.9727,231.34,231.24,5.8792717]
[1732673260521,3.7927,231.34,231.24,5.8792717]
[1732673261322,2.18,231.33,231.24,5.8792717]
[1732673262018,2.18,231.32,231.24,5.8792717]
[1732673262218,2.18,231.32,231.24,8.0421717]
[1732673262613,2.18,231.32,231.24,5.8792717]
[1732673262821,3.7927,231.34,231.24,5.8792717]
[1732673263022,2.18,231.33,231.24,5.8792717]
[1732673263420,2.18,231.33,231.24,8.0421717]
[1732673264021,2.18,231.32,231.24,5.8792717]
[1732673264721,2.18,231.31,231.24,5.8792717]
[1732673265523,2.18,231.31,231.2,17.17883277]
[1732673266617,4.3423,231.31,231.2,17.17883277]
[1732673267115,2.18,231.31,231.24,2.1629]
[1732673267325,2.18,231.31,231.2,17.17883277]
[1732673268528,2.18,231.31,231.24,2.1629]
[1732673268724,2.18,231.31,231.2,17.17883277]
[1732673269527,2.18,231.31,231.16,17.17883277]
[1732673269725,2.1624,231.3,231.21,2.1632]
[1732673269925,2.18,231.31,231.16,17.17883277]
[1732673270122,2.18,231.31,231.16,2.1636]
[1732673270423,0.81,231.3,231.16,2.1636]
[1732673271125,2.1629,231.25,231.17,2.1636]
[1732673271324,2.18,231.24,231.17,2.1636]
[1732673271824,1.47,231.23,231.17,2.1636]
[1732673274523,1.47,231.23,231.18,2.1634]
[1732673274722,2.18,231.22,231.2,17.17883277]
[1732673275119,2.18,231.22,231.21,2.1632]
[1732673275833,2.18,231.22,231.2,17.17883277]
[1732673276130,2.18,231.22,231.16,17.17883277]
[1732673276927,0.33,231.21,231.16,17.17883277]
[1732673277328,0.33,231.21,231.17,2.1635]
[1732673277527,0.33,231.21,231.16,17.17883277]
[1732673278234,0.33,231.21,231.19,2.1634]
[1732673281033,0.33,231.21,231.16,17.17883277]
[1732673281232,0.33,231.21,231.17,2.1636]
[1732673281433,0.33,231.21,231.12,17.17883277]
[1732673281835,0.33,231.21,231.17,2.1636]
[1732673282133,0.33,231.21,231.12,17.17883277]
[1732673282333,0.33,231.21,231.16,17.17883277]
[1732673282529,0.33,231.21,231.2,2.1633]
[1732673283125,2.51,231.21,231.2,2.1633]
[1732673284838,2.51,231.21,231.18,2.1634]
[1732673285228,2.51,231.21,231.12,17.17883277]
[1732673285433,2.1634,231.2,231.14,2.1638]
[1732673285633,2.51,231.21,231.1,1.8533]
[1732673286437,2.51,231.21,231.08,17.17883277]
[1732673287235,2.1635,231.18,231.12,2.164]
[1732673288235,2.1634,231.19,231.11,2.1641]
[1732673288435,2.1634,231.19,231.08,17.17883277]
[1732673288937,2.1634,231.19,231.11,2.1642]
[1732673289138,2.1634,231.19,231.08,17.17883277]
[1732673289732,2.1634,231.19,231.12,2.164]
[1732673290134,2.51,231.21,231.04,17.17883277]
[1732673290333,1.9803,231.2,231.04,17.17883277]
[1732673290837,3.8159,231.19,231.04,17.17883277]
[1732673291238,2.1638,231.15,231.09,2.1643]
[1732673291433,2.18,231.14,231.09,2.1643]
[1732673291835,2.18,231.14,231.1,2.1643]
[1732673292040,2.18,231.14,231.04,17.17883277]
[1732673292637,5.9794,231.19,231.13,2.164]
[1732673292638,3.8159,231.19,231.13,2.164]
[1732673292834,2.18,231.18,231.04,17.17883277]
[1732673293235,2.18,231.17,231.08,17.17883277]
[1732673293436,2.18,231.16,231.09,1.9121]
[1732673293635,2.18,231.15,231.09,1.9121]
[1732673294841,2.18,231.15,231.14,2.1639]
[1732673295735,2.18,231.15,231.13,2.164]
[1732673295932,2.18,231.15,231.09,1.9121]
[1732673296747,2.18,231.15,231.1,2.41869554]
[1732673296937,0.33,231.21,231.17,2.1636]
[1732673297133,0.33,231.21,231.12,17.17883277]
[1732673297442,0.33,231.21,231.13,2.42092048]
[1732673297443,2.18,231.2,231.13,2.42092048]
[1732673297639,2.18,231.2,231.12,17.17883277]
[1732673298042,2.18,231.2,231.13,2.42103583]
[1732673298242,2.18,231.2,231.14,2.42103583]
[1732673298447,2.18,231.19,231.12,17.17883277]
[1732673298639,2.18,231.19,231.13,2.4251994]
[1732673298940,2.18,231.19,231.18,2.1635]
[1732673303348,2.18,231.19,231.18,4.60540148]
[1732673303743,2.1627,231.27,231.22,2.1631]
[1732673303943,2.18,231.26,231.16,17.17883277]
[1732673304145,2.18,231.26,231.2,17.17883277]
[1732673304347,2.18,231.28,231.27,2.1627]
[1732673304644,2.18,231.28,231.16,17.17883277]
[1732673304845,2.18,231.28,231.17,2.44188121]
[1732673305151,2.18,231.28,231.16,17.17883277]
[1732673305152,2.1629,231.25,231.2,2.1633]
[1732673305352,2.18,231.28,231.2,2.1633]
[1732673305647,2.014,231.32,231.16,17.17883277]
[1732673305847,2.18,231.31,231.17,2.4411467]
[1732673306047,2.18,231.31,231.18,2.4411467]
[1732673306343,2.18,231.31,231.19,2.4411467]
[1732673306549,2.1628,231.26,231.2,2.4411467]
[1732673306746,2.18,231.25,231.12,17.17883277]
[1732673306948,2.18,231.24,231.13,2.44192122]
[1732673307142,2.18,231.24,231.0,150.21522439]
[1732673307143,2.1633,231.2,231.14,4.60572122]
[1732673307346,2.18,231.23,231.15,2.44192122]
[1732673307643,2.18,231.23,231.08,17.17883277]
[1732673307850,2.1633,231.21,231.15,2.1638]
[1732673308550,2.18,231.23,231.03,5.728]
[1732673308844,2.18,231.23,231.08,2.36980378]
[1732673309049,2.18,231.23,231.09,2.36980378]
[1732673309250,1.825,231.22,231.12,17.17883277]
[1732673309443,3.295,231.22,231.12,17.17883277]
[1732673309647,1.47,231.22,231.13,2.37073017]
[1732673309847,1.47,231.22,231.14,2.37073017]
[1732673310046,1.47,231.22,231.18,2.1635]
[1732673310452,1.47,231.22,231.12,17.17883277]
[1732673310655,1.47,231.22,231.13,2.37085328]
[1732673310851,1.47,231.22,231.14,2.37085328]
[1732673311056,1.47,231.22,231.12,17.17883277]
[1732673311352,1.47,231.22,231.13,2.37049218]
[1732673311549,1.47,231.22,231.12,17.17883277]
[1732673311744,2.18,231.21,231.13,2.37068623]
[1732673311955,2.18,231.21,231.18,2.1635]
[1732673313956,2.18,231.21,231.14,2.1638]
[1732673314562,2.18,231.21,231.08,17.17883277]
[1732673314861,2.18,231.21,231.09,2.37422412]
[1732673315061,4.3433,231.21,231.08,17.17883277]
[1732673315255,2.18,231.21,231.13,2.1639]
[1732673315952,2.18,231.21,231.17,2.1636]
[1732673316356,0.33,231.2,231.17,2.1636]
[1732673317358,2.4933,231.2,231.13,2.1639]
[1732673317658,2.4933,231.2,231.12,17.17883277]
[1732673317865,2.4933,231.2,231.12,19.34283277]
[1732673318060,2.1634,231.19,231.12,19.34283277]
[1732673318255,0.33,231.2,231.12,2.164]
[1732673319458,0.33,231.2,231.08,17.71050277]
[1732673319664,0.33,231.2,231.13,2.164]
[1732673320866,0.33,231.2,231.08,17.71050277]
[1732673321061,2.51,231.2,231.12,17.17883277]
[1732673321262,2.51,231.2,231.12,19.33504269]
[1732673321465,2.51,231.2,231.18,2.1635]
[1732673322466,2.51,231.2,231.08,0.53167]
[1732673322665,2.51,231.2,231.11,17.17883277]
[1732673322859,2.51,231.2,231.11,19.3260729]
[1732673323570,2.51,231.2,231.16,2.1637]
[1732673324169,2.51,231.2,231.11,19.3260729]
[1732673324467,2.51,231.2,231.17,2.1636]
[1732673324666,2.51,231.2,231.11,19.3260729]
[1732673324866,2.51,231.2,231.19,2.1634]
[1732673325064,0.33,231.2,231.19,19.34223277]
[1732673325263,2.18,231.26,231.25,2.1629]
[1732673325862,3.9938,231.32,231.25,2.1629]
[1732673325863,4.0639,231.28,231.25,2.1629]
[1732673326065,2.18,231.28,231.21,2.1632]
[1732673326267,2.18,231.28,231.19,17.17883277]
[1732673326769,2.18,231.28,231.25,2.1628]
[1732673327266,2.18,231.28,231.22,2.1631]
[1732673328164,2.18,231.28,231.19,17.17883277]
[1732673329266,2.1628,231.27,231.2,2.1633]
[1732673330268,2.18,231.28,231.21,2.1632]
[1732673330869,2.1627,231.27,231.21,2.1632]
[1732673331070,2.18,231.28,231.2,2.1633]
[1732673331572,2.1628,231.26,231.2,2.1633]
[1732673331769,2.18,231.28,231.21,2.1632]
[1732673331979,11.99408078,231.27,231.21,2.1632]
[1732673332273,2.1627,231.27,231.21,2.1632]
[1732673333166,1.66,231.26,231.21,2.1632]
[1732673334267,3.8228,231.26,231.21,2.1632]
[1732673335074,1.47,231.25,231.21,2.1632]
[1732673335574,1.47,231.25,231.22,2.1631]
[1732673336273,1.47,231.25,231.21,2.1632]
[1732673336568,1.47,231.25,231.15,10.78292768]
[1732673336764,11.30236631,231.25,231.15,10.78292768]
[1732673337170,2.163,231.24,231.19,2.1634]
[1732673337476,2.18,231.23,231.19,2.1634]
[1732673338171,2.1631,231.22,231.16,2.1636]
[1732673338375,2.18,231.23,231.12,12.71912768]
[1732673338576,2.18,231.23,231.12,10.78292768]
[1732673338778,2.1635,231.19,231.14,2.1638]
[1732673339077,2.18,231.18,231.12,10.78292768]
[1732673339377,3.2857,231.25,231.12,10.78292768]
[1732673339378,2.18,231.17,231.14,2.1638]
[1732673339975,2.18,231.17,231.13,2.164]
[1732673340678,4.3436,231.17,231.12,2.1641]
[1732673342074,2.18,231.17,231.14,2.1639]
[1732673342276,2.18,231.17,231.16,10.78292768]
[1732673342475,2.18,231.19,231.16,10.78292768]
[1732673342676,2.18,231.2,231.19,2.1634]
[1732673342876,2.18,231.2,231.19,10.78292768]
[1732673343174,2.18,231.22,231.19,10.78292768]
[1732673343371,2.18,231.22,231.19,12.94632768]
[1732673344474,2.18,231.22,231.19,2.1634]
[1732673345578,2.1634,231.2,231.16,10.78292768]
[1732673345774,2.1634,231.2,231.14,2.1638]
[1732673346673,2.1634,231.2,231.13,10.78292768]
[1732673346876,4.3432,231.22,231.15,2.1638]
[1732673347474,2.18,231.22,231.13,10.78292768]
[1732673347682,2.18,231.22,231.1,10.78292768]
[1732673347877,3.7783,231.21,231.1,10.78292768]
[1732673348880,3.7783,231.21,231.11,2.1642]
[1732673349180,3.7783,231.21,231.1,10.78292768]
[1732673349575,2.1639,231.15,231.1,10.78292768]
[1732673349782,2.18,231.14,231.1,10.78292768]
[1732673350080,2.18,231.13,231.1,10.78292768]
[1732673351277,2.18,231.13,231.11,2.1642]
[1732673351983,2.18,231.13,231.07,10.78292768]
[1732673352179,2.18,231.13,231.09,2.1643]
[1732673352578,2.18,231.13,231.07,10.78292768]
[1732673352781,2.18,231.13,231.08,2.1644]
[1732673353284,2.18,231.13,231.09,2.1644]
[1732673355380,2.18,231.13,231.02,0.59359]
[1732673355680,4.344,231.13,231.07,2.1645]
[1732673356693,2.18,231.13,231.08,2.1644]
[1732673356984,2.18,231.14,231.12,10.78292768]
[1732673357286,2.18,231.14,231.13,2.164]
[1732673357982,3.2857,231.25,231.12,10.78292768]
[1732673358292,10.21619457,231.24,231.21,10.78292768]
[1732673358491,1.47,231.25,231.23,2.1631]
[1732673358787,1.47,231.25,231.21,10.78292768]
[1732673360384,1.47,231.25,231.18,10.78292768]
[1732673360890,3.6329,231.25,231.18,10.78292768]
[1732673361083,10.21628246,231.24,231.18,10.78292768]
[1732673361283,10.21628246,231.24,231.19,2.1634]
[1732673361480,1.47,231.25,231.18,10.78292768]
[1732673362282,1.47,231.25,231.21,10.78292768]
[1732673362981,1.47,231.25,231.22,2.1631]
[1732673363180,2.18,231.27,231.21,10.78292768]
[1732673363383,2.18,231.27,231.24,10.78292768]
[1732673363781,12.62592768,231.39,231.24,10.78292768]
[1732673363782,2.18,231.3,231.24,10.78292768]
[1732673364489,2.18,231.3,231.27,2.1626]
[1732673364881,1.47,231.29,231.27,2.1626]
[1732673365386,1.47,231.29,231.25,2.1628]
[1732673366486,1.47,231.29,231.28,2.1626]
[1732673366787,3.13,231.29,231.28,2.1626]
[1732673367883,3.93,231.29,231.24,12.94582768]
[1732673368580,3.93,231.29,231.19,10.78292768]
[1732673368991,3.93,231.29,231.22,10.78292768]
[1732673369188,3.93,231.29,231.25,2.1629]
[1732673369789,3.93,231.29,231.25,10.78292768]
[1732673370382,3.93,231.29,231.27,2.1626]
[1732673370591,3.93,231.29,231.25,10.78292768]
[1732673371093,3.93,231.29,231.26,2.1628]
[1732673371296,3.93,231.29,231.25,10.78292768]
[1732673372890,3.93,231.29,231.22,10.78292768]
[1732673373095,3.93,231.29,231.19,10.78292768]
[1732673373492,3.93,231.29,231.23,2.163]
[1732673374197,6.0926,231.29,231.23,2.163]
[1732673375197,2.1626,231.28,231.21,2.1632]
[1732673375401,2.1626,231.28,231.19,10.78292768]
[1732673376289,2.1626,231.28,231.22,2.1631]
[1732673376689,4.6225,231.29,231.22,2.1631]
[1732673377397,2.46,231.29,231.25,10.78292768]
[1732673377602,4.64,231.29,231.25,10.78292768]
[1732673378297,4.64,231.29,231.26,2.1627]
[1732673379998,2.46,231.29,231.25,10.78292768]
[1732673380202,2.46,231.29,231.28,10.78292768]
[1732673381099,2.46,231.29,231.28,12.9084678]
[1732673381293,2.46,231.29,231.28,12.94552768]
[1732673385801,3.93,231.29,231.28,12.94552768]
[1732673388400,3.93,231.29,231.26,2.1627]
[1732673389803,3.13,231.29,231.26,2.1627]
[1732673390504,3.13,231.29,231.27,2.1627]
[1732673391203,3.13,231.29,231.25,10.78292768]
[1732673391506,3.13,231.29,231.25,12.94572768]
[1732673393497,3.13,231.29,231.25,10.78292768]
[1732673393704,3.13,231.29,231.26,2.1627]
[1732673393899,1.47,231.29,231.26,2.1627]
[1732673394504,1.47,231.29,231.28,6.8965147]
[1732673398307,1.47,231.29,231.28,9.0591147]
[1732673399210,1.47,231.29,231.24,2.1629]
[1732673399406,2.18,231.28,231.26,6.8965147]
[1732673400600,2.18,231.28,231.26,9.0593147]
[1732673403210,2.18,231.28,231.24,6.8965147]
[1732673403812,2.18,231.28,231.26,6.8965147]
[1732673404411,2.18,231.28,231.27,2.1627]
[1732673404611,2.98,231.28,231.27,2.1627]
[1732673404911,2.98,231.28,231.26,9.0593147]
[1732673405811,2.98,231.28,231.26,6.8965147]
[1732673406015,2.98,231.28,231.15,1.9038]
[1732673406207,2.98,231.28,231.24,6.8965147]
[1732673406407,10.2353802,231.27,231.24,6.8965147]
[1732673406606,12.3980802,231.27,231.24,6.8965147]
[1732673406803,10.2353802,231.26,231.24,6.8965147]
[1732673407113,10.2353802,231.25,231.24,6.8965147]
[1732673407716,10.2353802,231.27,231.24,6.8965147]
[1732673408017,10.2353802,231.26,231.24,6.8965147]
[1732673408205,10.2353802,231.25,231.24,6.8965147]
[1732673408405,10.2353802,231.27,231.24,6.8965147]
[1732673408613,10.2353802,231.26,231.24,6.8965147]
[1732673408811,10.2353802,231.25,231.24,6.8965147]
[1732673409015,10.2353802,231.27,231.24,6.8965147]
[1732673409310,10.2353802,231.26,231.24,6.8965147]